bitfinex/quotes_BTCUSD_20220120
["timestamp","ask_amount","ask_price","bid_price","bid_amount"]
[1642712366663,0.0001719,42706.0,42705.0,0.05853481]
[1642712366863,0.0001719,42706.0,42705.0,1.52467739]
[1642712367063,0.0002081,42711.0,42705.0,2.3281241]
[1642712367064,0.00025785,42711.0,42705.0,2.3281241]
[1642712367263,0.00025785,42711.0,42710.0,0.00122401]
[1642712367462,0.001,42714.0,42710.0,0.44762401]
[1642712367722,0.001,42714.0,42710.0,1.07418385]
[1642712367920,0.001,42714.0,42713.0,0.32118233]
[1642712368221,0.00250503,42714.0,42713.0,0.86040163]
[1642712368421,0.00250503,42714.0,42713.0,1.24144763]
[1642712368819,0.72468676,42722.0,42719.0,0.21653592]
[1642712369019,0.42,42723.0,42720.0,0.0464]
[1642712369320,0.42,42723.0,42720.0,0.3255593]
[1642712369519,0.17822427,42726.0,42720.0,0.3255593]
[1642712369520,0.42121654,42726.0,42720.0,0.3255593]
[1642712369721,0.058528,42725.0,42720.0,0.0464]
[1642712369919,0.058528,42725.0,42719.0,0.26653592]
[1642712369920,0.00015471,42723.0,42719.0,0.26653592]
[1642712370225,0.058528,42725.0,42720.0,0.0464]
[1642712370226,0.00013752,42722.0,42720.0,0.0464]
[1642712370621,0.20132855,42723.0,42720.0,0.0464]
[1642712370622,1.10012033,42721.0,42720.0,0.0464]
[1642712371021,1.48116633,42721.0,42720.0,0.0464]
[1642712371462,1.48116633,42721.0,42710.0,0.00122401]
[1642712371664,0.00020801,42720.0,42718.0,0.00043069]
[1642712371863,0.058541,42719.0,42718.0,0.00043069]
[1642712372162,0.90008595,42719.0,42718.0,0.00043069]
[1642712372562,8.595e-05,42719.0,42718.0,0.00043069]
[1642712372865,8.595e-05,42719.0,42716.0,0.33801677]
[1642712373062,8.595e-05,42719.0,42716.0,0.5298739]
[1642712373263,6.876e-05,42718.0,42716.0,0.5298739]
[1642712373462,6.876e-05,42718.0,42716.0,0.33801677]
[1642712373661,0.00010314,42720.0,42716.0,0.39654677]
[1642712373863,0.00010314,42720.0,42716.0,0.39592616]
[1642712374063,8.595e-05,42719.0,42716.0,0.44592616]
[1642712374464,6.876e-05,42718.0,42716.0,0.44592616]
[1642712374763,0.00010314,42720.0,42716.0,0.39952616]
[1642712374964,0.00010314,42720.0,42717.0,0.11915038]
[1642712375208,8.595e-05,42719.0,42717.0,0.11915038]
[1642712375609,6.876e-05,42718.0,42717.0,0.11915038]
[1642712375809,6.876e-05,42718.0,42717.0,0.50019638]
[1642712377412,6.876e-05,42718.0,42717.0,0.83167856]
[1642712378412,6.876e-05,42718.0,42717.0,1.22037417]
[1642712378613,6.876e-05,42718.0,42717.0,1.57500972]
[1642712378816,1.3239,42728.0,42717.0,1.57500972]
[1642712378817,0.019371,42749.0,42721.0,0.381046]
[1642712379075,0.00478064,42734.0,42726.0,0.4]
[1642712379274,0.00478064,42734.0,42733.0,0.00125531]
[1642712379571,0.00478064,42734.0,42733.0,1.60303131]
[1642712379770,0.00505569,42734.0,42733.0,1.65303131]
[1642712379971,0.00505569,42734.0,42733.0,1.80303131]
[1642712379972,0.00027505,42734.0,42733.0,1.80303131]
[1642712380170,0.00027505,42734.0,42733.0,2.1662309]
[1642712380371,0.019371,42749.0,42738.0,0.058493]
[1642712380372,0.00825132,42743.0,42738.0,0.058493]
[1642712380675,0.00825132,42743.0,42739.0,0.54659638]
[1642712380871,0.00825132,42743.0,42742.0,0.381046]
[1642712381071,0.00825132,42743.0,42742.0,0.431046]
[1642712381276,0.00840603,42743.0,42742.0,0.50019638]
[1642712381573,0.00840603,42743.0,42742.0,0.11915038]
[1642712381773,0.38945203,42743.0,42733.0,0.0464]
[1642712381971,0.58481397,42743.0,42728.0,0.0464]
[1642712382271,0.58481397,42743.0,42734.0,0.11910066]
[1642712382272,0.00127161,42740.0,42734.0,0.11910066]
[1642712382473,0.18581679,42737.0,42733.0,0.28105034]
[1642712382708,0.00127161,42740.0,42735.0,0.11910066]
[1642712382709,8.595e-05,42739.0,42735.0,0.11910066]
[1642712383215,0.00127161,42740.0,42733.0,0.28105034]
[1642712383216,6.876e-05,42738.0,42736.0,0.11910066]
[1642712383609,8.595e-05,42739.0,42734.0,0.11910066]
[1642712383810,8.595e-05,42739.0,42737.0,0.11910066]
[1642712384010,0.45006876,42738.0,42735.0,0.11910066]
[1642712384209,0.45006876,42738.0,42733.0,0.28105034]
[1642712384410,0.45,42738.0,42733.0,0.28105034]
[1642712385010,0.45,42738.0,42736.0,0.00066393]
[1642712386013,1.481046,42737.0,42729.0,0.23535044]
[1642712386213,1.481046,42737.0,42735.0,0.00066396]
[1642712386214,1.1,42737.0,42735.0,0.00066396]
[1642712386457,0.38855947,42739.0,42735.0,0.00066396]
[1642712386458,1.481046,42736.0,42735.0,0.00066396]
[1642712387058,1.539567,42736.0,42730.0,0.2270334]
[1642712387260,0.058522,42735.0,42730.0,0.2270334]
[1642712387459,0.058522,42735.0,42733.0,0.000664]
[1642712388259,0.25531343,42735.0,42730.0,0.2770334]
[1642712388461,6.876e-05,42738.0,42732.0,0.00066404]
[1642712388462,0.058519,42737.0,42732.0,0.00066404]
[1642712388659,6.876e-05,42738.0,42732.0,0.00066404]
[1642712389460,6.876e-05,42738.0,42730.0,0.2270334]
[1642712389659,6.876e-05,42738.0,42733.0,0.00066401]
[1642712389860,0.05852,42737.0,42733.0,0.00066401]
[1642712390061,0.10852,42737.0,42733.0,0.00066401]
[1642712390709,0.05852,42737.0,42730.0,0.2270334]
[1642712390909,6.876e-05,42738.0,42733.0,0.33355143]
[1642712391111,6.876e-05,42738.0,42733.0,0.38355143]
[1642712391708,6.876e-05,42738.0,42734.0,0.058505]
[1642712392107,6.876e-05,42738.0,42737.0,0.20815899]
[1642712392311,6.876e-05,42738.0,42733.0,0.000664]
[1642712392312,0.00017274,42738.0,42733.0,0.000664]
[1642712392509,6.876e-05,42738.0,42733.0,0.000664]
[1642712393108,6.876e-05,42738.0,42730.0,6.876e-05]
[1642712393109,0.16486443,42735.0,42730.0,6.876e-05]
[1642712393307,0.16486443,42735.0,42733.0,0.000664]
[1642712393959,0.00010398,42736.0,42733.0,0.000664]
[1642712394264,0.117039,42737.0,42728.0,0.00010314]
[1642712394460,0.00010398,42736.0,42732.0,0.00066402]
[1642712394661,0.11714298,42737.0,42732.0,0.00066402]
[1642712394860,0.19379593,42735.0,42732.0,0.00066402]
[1642712395561,0.00010398,42736.0,42728.0,0.31164948]
[1642712395761,0.00017274,42738.0,42731.0,0.00066405]
[1642712396162,6.876e-05,42738.0,42731.0,0.00066405]
[1642712396366,0.18635272,42735.0,42731.0,0.00066405]
[1642712396562,0.11722074,42738.0,42731.0,0.00066405]
[1642712396563,0.22873703,42734.0,42731.0,0.00066405]
[1642712396763,0.22873703,42734.0,42729.0,8.595e-05]
[1642712396964,0.22873703,42734.0,42731.0,0.00066406]
[1642712397367,0.00010398,42736.0,42731.0,0.00066406]
[1642712397566,0.00010398,42735.0,42732.0,0.28539224]
[1642712397818,6.876e-05,42738.0,42732.0,0.28539224]
[1642712397819,0.00010398,42737.0,42732.0,0.28539224]
[1642712398018,6.876e-05,42738.0,42732.0,0.28539224]
[1642712398218,6.876e-05,42738.0,42732.0,0.33539224]
[1642712399021,0.2533128,42736.0,42732.0,0.33539224]
[1642712399220,0.00010398,42736.0,42732.0,0.33539224]
[1642712399420,0.20729134,42738.0,42733.0,0.00066401]
[1642712399622,0.00010398,42736.0,42733.0,0.00066401]
[1642712399820,0.20739532,42738.0,42733.0,0.00066401]
[1642712400020,0.00010398,42737.0,42733.0,0.00066401]
[1642712400423,0.20729134,42738.0,42728.0,0.05861914]
[1642712400621,0.20729134,42738.0,42733.0,0.000664]
[1642712400622,0.00010398,42737.0,42733.0,0.000664]
[1642712400821,0.381046,42736.0,42733.0,0.000664]
[1642712401020,0.00010398,42737.0,42733.0,0.000664]
[1642712401221,0.25729134,42738.0,42733.0,0.000664]
[1642712401475,0.8,42736.0,42727.0,0.25803987]
[1642712401673,0.22618567,42728.0,42722.0,0.11831819]
[1642712401878,0.00121983,42734.0,42719.0,0.1]
[1642712402070,0.00121983,42734.0,42723.0,0.00010315]
[1642712402268,6.876e-05,42733.0,42723.0,0.00010315]
[1642712402468,6.876e-05,42733.0,42721.0,0.00013753]
[1642712402469,0.00017274,42733.0,42721.0,0.00013753]
[1642712402668,6.876e-05,42733.0,42732.0,0.30936822]
[1642712402869,0.00017274,42733.0,42732.0,0.30936822]
[1642712403068,6.876e-05,42733.0,42732.0,0.30936822]
[1642712403269,6.876e-05,42733.0,42732.0,0.45936822]
[1642712403469,6.876e-05,42733.0,42732.0,0.70207177]
[1642712403669,6.876e-05,42733.0,42732.0,1.08311777]
[1642712404472,6.876e-05,42733.0,42732.0,0.93311777]
[1642712405711,6.876e-05,42733.0,42732.0,0.98311777]
[1642712405911,6.876e-05,42733.0,42732.0,1.08311777]
[1642712406113,6.876e-05,42733.0,42732.0,1.46632375]
[1642712406313,6.876e-05,42733.0,42732.0,1.08311777]
[1642712406513,0.00119521,42742.0,42733.0,0.381046]
[1642712406713,0.00010399,42737.0,42732.0,0.208511]
[1642712406915,0.00010399,42737.0,42732.0,0.15]
[1642712406916,6.876e-05,42737.0,42732.0,0.15]
[1642712407115,6.876e-05,42737.0,42730.0,0.00065913]
[1642712407313,0.058511,42736.0,42730.0,0.00065913]
[1642712407514,0.058511,42736.0,42727.0,0.117026]
[1642712407714,0.0579808,42736.0,42731.0,0.00065912]
[1642712408116,0.19464834,42733.0,42731.0,0.00065912]
[1642712408714,0.30316934,42733.0,42731.0,0.00065912]
[1642712408966,0.30316934,42733.0,42730.0,0.00065915]
[1642712408967,0.381046,42732.0,42730.0,0.00065915]
[1642712409167,1.158531,42731.0,42730.0,0.00065915]
[1642712409367,1.12572321,42731.0,42730.0,0.00065915]
[1642712409671,1.45190051,42731.0,42730.0,0.00065915]
[1642712409869,1.217062,42730.0,42728.0,8.595e-05]
[1642712410066,1.217062,42730.0,42728.0,0.00074513]
[1642712410067,0.381046,42729.0,42728.0,0.00074513]
[1642712410268,0.058531,42730.0,42728.0,0.00065918]
[1642712410468,0.058531,42730.0,42728.0,0.00074513]
[1642712410667,0.058531,42730.0,42729.0,6.876e-05]
[1642712411268,0.80122811,42730.0,42729.0,6.876e-05]
[1642712411468,0.80122811,42730.0,42718.0,0.00122259]
[1642712411469,0.80122811,42730.0,42724.0,0.00015472]
[1642712411667,0.8013321,42730.0,42723.0,0.00017191]
[1642712411867,0.8013321,42730.0,42719.0,0.00024067]
[1642712412067,0.19026968,42726.0,42719.0,0.00024067]
[1642712412270,0.05853,42725.0,42719.0,0.05877067]
[1642712412468,0.05863399,42725.0,42719.0,0.00024067]
[1642712412708,0.05863399,42725.0,42720.0,0.00022348]
[1642712412910,0.05863399,42725.0,42719.0,0.00024067]
[1642712413111,0.05863399,42725.0,42718.0,0.00025786]
[1642712413310,0.05863399,42725.0,42716.0,0.00029224]
[1642712413513,0.18060472,42720.0,42716.0,0.00029224]
[1642712413713,0.23914172,42720.0,42719.0,0.00065452]
[1642712413910,0.18060472,42720.0,42719.0,0.00065452]
[1642712414109,0.117073,42721.0,42719.0,0.00089519]
[1642712414311,0.80334721,42720.0,42719.0,0.00089519]
[1642712414510,0.80334721,42720.0,42719.0,0.00065452]
[1642712414713,0.80334721,42720.0,42715.0,0.29625318]
[1642712414913,0.80669442,42720.0,42717.0,0.00065457]
[1642712415510,0.16274713,42719.0,42717.0,0.00065457]
[1642712415910,0.16274713,42719.0,42716.0,0.00029224]
[1642712416111,0.16274713,42719.0,42716.0,0.00094685]
[1642712416309,0.16274713,42719.0,42716.0,0.00065461]
[1642712416568,0.99153673,42718.0,42717.0,0.00027505]
[1642712417171,0.99153673,42718.0,42705.0,0.00123705]
[1642712417172,1.0,42717.0,42705.0,0.00123705]
[1642712417371,1.0,42717.0,42715.0,0.00065462]
[1642712417577,0.75,42715.0,42706.0,0.00018909]
[1642712417770,0.21652162,42707.0,42706.0,0.00018909]
[1642712417973,0.42734644,42707.0,42699.0,0.50157174]
[1642712418170,0.21082482,42707.0,42700.0,0.38133823]
[1642712418370,0.05979183,42706.0,42700.0,0.38133823]
[1642712418572,0.05979183,42706.0,42701.0,0.00027504]
[1642712418971,0.05979183,42706.0,42696.0,0.11711]
[1642712419171,0.25676742,42706.0,42697.0,0.0003438]
[1642712419371,0.11834783,42706.0,42700.0,0.2697355]
[1642712419571,0.11834783,42706.0,42700.0,0.32828799]
[1642712419572,0.00334721,42703.0,42700.0,0.32828799]
[1642712419772,0.00334721,42703.0,42701.0,0.38132104]
[1642712420224,0.00334721,42702.0,42701.0,0.57583016]
[1642712420514,0.00334721,42702.0,42701.0,0.6261052]
[1642712420715,0.00334721,42702.0,42701.0,1.17233913]
[1642712421416,0.00334721,42702.0,42701.0,1.2846582]
[1642712421613,0.00334721,42702.0,42701.0,1.61313598]
[1642712423016,0.00334721,42702.0,42701.0,1.11313598]
[1642712423220,0.00334721,42702.0,42701.0,0.7846582]
[1642712423819,0.00334721,42702.0,42701.0,0.48987404]
[1642712424075,0.00334721,42702.0,42701.0,0.43132104]
[1642712424278,0.00334721,42702.0,42701.0,0.38132104]
[1642712424476,0.45334721,42702.0,42701.0,0.38132104]
[1642712424676,0.45334721,42702.0,42701.0,0.00027504]
[1642712424873,0.45669442,42702.0,42701.0,0.00027504]
[1642712425072,0.77393861,42702.0,42700.0,0.00029223]
[1642712425273,0.86937941,42701.0,42700.0,0.00029223]
[1642712425477,0.55,42701.0,42700.0,0.00029223]
[1642712425673,0.55334721,42701.0,42700.0,0.00029223]
[1642712425875,0.55334721,42701.0,42699.0,0.0006502]
[1642712426075,0.55334721,42701.0,42700.0,0.00029223]
[1642712426274,0.00334721,42701.0,42700.0,0.00029223]
[1642712427279,0.00334721,42701.0,42699.0,0.00030942]
[1642712428319,0.00334721,42701.0,42698.0,0.00065022]
[1642712428320,0.31223586,42701.0,42698.0,0.00065022]
[1642712428520,0.31223586,42701.0,42699.0,0.00030942]
[1642712429120,0.28866099,42702.0,42699.0,0.00030942]
[1642712429523,0.23009899,42702.0,42698.0,0.00065022]
[1642712429722,0.23009899,42702.0,42699.0,0.00030942]
[1642712429923,0.22675178,42702.0,42699.0,0.00030942]
[1642712430326,0.00334721,42700.0,42699.0,0.00030942]
[1642712430727,0.00334721,42700.0,42698.0,0.00097682]
[1642712430925,0.06191021,42700.0,42699.0,0.00030942]
[1642712431328,0.91191021,42700.0,42699.0,0.00030942]
[1642712431562,0.97047321,42700.0,42699.0,0.00030942]
[1642712431966,0.97047321,42700.0,42697.0,0.00065024]
[1642712432162,0.97047321,42700.0,42698.0,0.00032661]
[1642712432761,0.12047321,42700.0,42698.0,0.00032661]
[1642712433163,0.12047321,42700.0,42697.0,0.00065025]
[1642712433366,0.06191021,42700.0,42698.0,0.00032661]
[1642712434464,0.06191021,42700.0,42697.0,0.00065025]
[1642712434663,0.06191021,42700.0,42698.0,0.00032661]
[1642712435063,0.34525387,42700.0,42698.0,0.00032661]
[1642712435313,0.34190666,42700.0,42698.0,0.00032661]
[1642712435514,0.00334721,42699.0,42697.0,0.00065025]
[1642712435718,0.00334721,42699.0,42698.0,0.00032661]
[1642712435917,0.74739293,42699.0,42698.0,0.00032661]
[1642712436114,0.74862375,42699.0,42698.0,0.00032661]
[1642712436315,1.84862375,42699.0,42698.0,0.00032661]
[1642712436815,1.84862375,42699.0,42696.0,0.00065026]
[1642712436816,0.05858,42698.0,42696.0,0.00065026]
[1642712437014,0.05858,42698.0,42697.0,0.0003438]
[1642712437214,1.539626,42698.0,42697.0,0.0003438]
[1642712437417,1.86883315,42698.0,42697.0,0.0003438]
[1642712437617,1.539626,42698.0,42697.0,0.0003438]
[1642712438015,1.539626,42698.0,42695.0,0.00065029]
[1642712438216,0.058569,42698.0,42696.0,0.00036099]
[1642712438420,0.108569,42698.0,42696.0,0.00036099]
[1642712438816,0.058569,42698.0,42696.0,0.00036099]
[1642712439262,0.058569,42698.0,42695.0,0.0006503]
[1642712439460,0.058569,42698.0,42696.0,0.00036099]
[1642712440358,0.058569,42698.0,42695.0,0.0006503]
[1642712440659,0.36729319,42698.0,42696.0,0.00036099]
[1642712441077,1.59677803,42697.0,42696.0,0.00036099]
[1642712441258,1.64677803,42697.0,42696.0,0.00036099]
[1642712441458,1.64677803,42697.0,42695.0,0.0006503]
[1642712441658,1.27704998,42696.0,42695.0,0.0006503]
[1642712441860,1.29942598,42696.0,42695.0,0.0006503]
[1642712442060,1.29942598,42696.0,42695.0,0.00102848]
[1642712442262,1.58210527,42696.0,42695.0,0.00037818]
[1642712442460,0.972376,42696.0,42695.0,0.00037818]
[1642712442719,1.008569,42696.0,42693.0,0.00065034]
[1642712443019,0.79130668,42694.0,42693.0,0.00065034]
[1642712443218,0.19130668,42694.0,42693.0,0.00065034]
[1642712443419,0.19130668,42694.0,42693.0,0.0010629]
[1642712443723,0.19130668,42694.0,42693.0,0.00041256]
[1642712443921,0.27948383,42696.0,42693.0,0.00041256]
[1642712444219,0.32948383,42696.0,42692.0,0.00042975]
[1642712444719,0.058572,42695.0,42692.0,0.00042975]
[1642712444919,0.058572,42695.0,42692.0,0.00108012]
[1642712445926,0.00334721,42694.0,42692.0,0.00042975]
[1642712447666,1.43233844,42693.0,42692.0,0.00042975]
[1642712447864,0.38233844,42693.0,42692.0,0.00042975]
[1642712448064,0.93233844,42693.0,42692.0,0.00042975]
[1642712448568,1.2463811,42693.0,42692.0,0.00042975]
[1642712448969,1.2963811,42693.0,42692.0,0.00042975]
[1642712449565,0.05129244,42693.0,42692.0,0.00042975]
[1642712449765,0.00334721,42694.0,42692.0,0.00042975]
[1642712449967,0.31468579,42694.0,42692.0,0.00042975]
[1642712451021,0.831046,42693.0,42692.0,0.00042975]
[1642712451221,0.77526431,42693.0,42692.0,0.00042975]
[1642712451420,0.05334721,42693.0,42692.0,0.00042975]
[1642712451820,0.00334721,42693.0,42692.0,0.00042975]
[1642712452020,0.35334721,42693.0,42692.0,0.00042975]
[1642712452423,0.40334721,42693.0,42692.0,0.00042975]
[1642712452821,0.35334721,42693.0,42692.0,0.00042975]
[1642712453823,0.40334721,42693.0,42692.0,0.00042975]
[1642712455164,0.75334721,42693.0,42692.0,0.00042975]
[1642712455865,0.00334721,42693.0,42692.0,0.00042975]
[1642712457066,0.35334721,42693.0,42692.0,0.00042975]
[1642712458415,0.00334721,42693.0,42692.0,0.00042975]
[1642712459621,0.00334721,42693.0,42682.0,0.41860188]
[1642712459622,1.3098372,42691.0,42677.0,0.0011]
[1642712459822,0.0012451,42678.0,42677.0,0.5011]
[1642712460019,0.0012451,42678.0,42677.0,0.882146]
[1642712460220,0.0012451,42678.0,42677.0,0.382146]
[1642712460819,0.0012451,42678.0,42677.0,0.0011]
[1642712461873,0.36476324,42683.0,42677.0,0.24560557]
[1642712461874,0.42334424,42683.0,42677.0,0.24560557]
[1642712462078,0.00334721,42684.0,42677.0,0.29560557]
[1642712462275,0.00334721,42684.0,42678.0,0.00024066]
[1642712463073,0.00334721,42684.0,42679.0,0.26314782]
[1642712463273,0.058583,42683.0,42679.0,0.25814782]
[1642712463473,0.058583,42683.0,42680.0,0.00020628]
[1642712464276,0.12051521,42684.0,42680.0,0.05878594]
[1642712464277,0.00334721,42684.0,42680.0,0.05878594]
[1642712464774,0.00334721,42684.0,42681.0,0.00018909]
[1642712465217,0.30868612,42688.0,42680.0,0.00020628]
[1642712465418,0.00119588,42686.0,42680.0,0.00083317]
[1642712465619,0.00334721,42682.0,42680.0,0.00083317]
[1642712465818,0.00334721,42682.0,42681.0,0.00018909]
[1642712466722,0.00334721,42682.0,42680.0,0.00020628]
[1642712468321,0.06193021,42682.0,42680.0,0.00020628]
[1642712470170,1.15825497,42681.0,42680.0,0.00020628]
[1642712470371,1.53930097,42681.0,42680.0,0.00020628]
[1642712470771,1.54264818,42681.0,42680.0,0.00020628]
[1642712471871,1.60124318,42681.0,42679.0,0.00022347]
[1642712472073,1.35592214,42680.0,42679.0,0.00022347]
[1642712472471,1.41451714,42680.0,42679.0,0.00022347]
[1642712472721,0.35592214,42680.0,42679.0,0.00022347]
[1642712472921,0.73354614,42680.0,42679.0,0.00022347]
[1642712473324,0.12133821,42681.0,42679.0,0.00022347]
[1642712473924,0.8592411,42680.0,42679.0,0.00022347]
[1642712474224,0.3092411,42680.0,42679.0,0.00022347]
[1642712474826,0.8592411,42680.0,42679.0,0.00022347]
[1642712475023,1.2402871,42680.0,42679.0,0.00022347]
[1642712476124,0.86258831,42680.0,42679.0,0.00022347]
[1642712476325,0.55334721,42680.0,42679.0,0.00022347]
[1642712476774,0.55016284,42680.0,42679.0,0.00022347]
[1642712477278,0.85807636,42680.0,42679.0,0.00022347]
[1642712478079,0.55016284,42680.0,42679.0,0.00022347]
[1642712478480,0.00334721,42680.0,42679.0,0.00022347]
[1642712478680,0.00317,42680.0,42679.0,0.00022347]
[1642712479884,0.35317,42680.0,42679.0,0.00022347]
[1642712480540,0.058595,42681.0,42679.0,0.00022347]
[1642712481743,1.59355698,42680.0,42679.0,0.00022347]
[1642712482340,0.69355698,42680.0,42679.0,0.00022347]
[1642712482542,0.381046,42680.0,42679.0,0.00022347]
[1642712482743,0.80670864,42680.0,42679.0,0.00022347]
[1642712483966,0.30670864,42680.0,42679.0,0.00022347]
[1642712484367,0.058595,42681.0,42679.0,0.00022347]
[1642712485066,0.3104835,42680.0,42679.0,0.00022347]
[1642712485272,1.4915295,42680.0,42679.0,0.00022347]
[1642712487741,0.731046,42680.0,42679.0,0.00022347]
[1642712487943,1.04569414,42680.0,42679.0,0.00022347]
[1642712490548,1.05398058,42680.0,42679.0,0.00022347]
[1642712490745,1.85398058,42680.0,42679.0,0.00022347]
[1642712492073,1.85444058,42680.0,42679.0,0.00022347]
[1642712492775,1.10444058,42680.0,42679.0,0.00022347]
[1642712493374,1.05444058,42680.0,42679.0,0.00022347]
[1642712494174,1.11303558,42680.0,42679.0,0.00022347]
[1642712495809,1.11303558,42680.0,42679.0,0.00022347]
[1642712496207,0.73850293,42680.0,42679.0,0.00022347]
[1642712496506,1.23850293,42680.0,42679.0,0.00022347]
[1642712500561,1.48850293,42680.0,42679.0,0.00022347]
[1642712500760,1.48770864,42680.0,42679.0,0.00022347]
[1642712501084,1.23770864,42680.0,42679.0,0.00022347]
[1642712502061,0.73770864,42680.0,42679.0,0.00022347]
[1642712502459,1.44888804,42680.0,42679.0,0.00022347]
[1642712502916,1.04888804,42680.0,42679.0,0.00022347]
[1642712504014,1.09888804,42680.0,42679.0,0.00022347]
[1642712504814,0.74888804,42680.0,42679.0,0.00022347]
[1642712505014,0.43770864,42680.0,42679.0,0.00022347]
[1642712505413,0.88770864,42680.0,42679.0,0.00022347]
[1642712506013,1.19428214,42680.0,42679.0,0.00022347]
[1642712508861,1.25287714,42680.0,42679.0,0.00022347]
[1642712510911,1.19428214,42680.0,42679.0,0.00022347]
[1642712512410,1.64428214,42680.0,42679.0,0.00022347]
[1642712512811,1.19428214,42680.0,42679.0,0.00022347]
[1642712513008,1.29428214,42680.0,42679.0,0.00022347]
[1642712513211,1.29553413,42680.0,42679.0,0.00022347]
[1642712513411,1.29553413,42680.0,42666.0,0.58810581]
[1642712513412,1.158604,42677.0,42666.0,0.58810581]
[1642712513613,0.058606,42674.0,42660.0,0.58810581]
[1642712513814,0.058606,42674.0,42668.0,0.00018909]
[1642712513815,0.00127346,42669.0,42668.0,0.00018909]
[1642712514063,1.03153146,42669.0,42668.0,0.00018909]
[1642712514266,0.20290504,42668.0,42660.0,0.00032661]
[1642712514463,0.20290504,42668.0,42659.0,0.0003438]
[1642712514464,0.058619,42666.0,42659.0,0.0003438]
[1642712514664,0.11723423,42665.0,42659.0,0.0003438]
[1642712514865,0.11723423,42665.0,42651.0,0.42665083]
[1642712514866,0.058616,42664.0,42658.0,0.00036099]
[1642712515262,0.058616,42664.0,42657.0,0.00037819]
[1642712515665,0.05861577,42663.0,42657.0,0.00037819]
[1642712515865,0.05861577,42663.0,42655.0,0.058616]
[1642712515866,0.058615,42662.0,42656.0,0.00039538]
[1642712516264,0.18494354,42658.0,42656.0,0.00039538]
[1642712516466,0.58584026,42663.0,42657.0,0.381006]
[1642712516667,0.58584026,42663.0,42656.0,0.00039538]
[1642712516871,0.58584026,42663.0,42658.0,0.00036099]
[1642712517166,0.58584026,42663.0,42656.0,0.00039538]
[1642712517366,0.30013649,42662.0,42656.0,0.00039538]
[1642712517567,0.058617,42661.0,42656.0,0.00039538]
[1642712518013,0.17892562,42658.0,42656.0,0.00039538]
[1642712518215,0.17892562,42658.0,42656.0,0.00100034]
[1642712518412,0.17892562,42658.0,42656.0,0.00060496]
[1642712518611,0.29616685,42658.0,42657.0,0.00037819]
[1642712519013,0.67717285,42658.0,42657.0,0.00037819]
[1642712519416,1.77717285,42658.0,42657.0,0.00037819]
[1642712519612,1.77717285,42658.0,42655.0,0.00060498]
[1642712519815,0.0012813,42656.0,42655.0,0.00060498]
[1642712520014,1.4822873,42656.0,42655.0,0.00060498]
[1642712520213,1.4822873,42656.0,42655.0,0.00101755]
[1642712520413,1.4822873,42656.0,42655.0,0.00041257]
[1642712520813,1.4822873,42656.0,42653.0,0.00060503]
[1642712521013,1.4822873,42656.0,42654.0,0.00042976]
[1642712521014,0.24908727,42655.0,42654.0,0.00042976]
[1642712521214,1.37071527,42655.0,42654.0,0.00042976]
[1642712521460,1.42071527,42655.0,42654.0,0.00042976]
[1642712521659,1.42200037,42655.0,42654.0,0.00042976]
[1642712522061,0.058629,42654.0,42652.0,0.00060505]
[1642712522258,1.481006,42653.0,42652.0,0.00060505]
[1642712522472,1.089642,42653.0,42652.0,0.00060505]
[1642712522659,1.089642,42653.0,42652.0,0.00106919]
[1642712522857,1.089642,42653.0,42652.0,0.00046414]
[1642712523057,1.45335909,42653.0,42652.0,0.00046414]
[1642712523261,1.51200109,42653.0,42650.0,0.0006051]
[1642712523457,0.058642,42652.0,42651.0,0.00048133]
[1642712523659,1.54033433,42652.0,42651.0,0.00048133]
[1642712524060,0.44033433,42652.0,42651.0,0.00048133]
[1642712524360,0.38169233,42652.0,42649.0,0.00060512]
[1642712524581,0.021628,42652.0,42649.0,0.00060512]
[1642712524759,0.3045,42653.0,42650.0,0.00049852]
[1642712525408,0.058623,42656.0,42650.0,0.00049852]
[1642712525637,0.058623,42656.0,42649.0,0.00112083]
[1642712525805,0.058624,42654.0,42650.0,0.00049852]
[1642712526005,0.058624,42654.0,42650.0,0.00057052]
[1642712526206,0.108624,42657.0,42650.0,0.05919252]
[1642712526407,0.108624,42657.0,42651.0,0.00048133]
[1642712526808,0.108624,42657.0,42651.0,0.00055333]
[1642712527008,0.108624,42657.0,42651.0,0.17267769]
[1642712527213,0.05,42657.0,42652.0,0.05862]
[1642712527407,0.05,42657.0,42652.0,0.058692]
[1642712527607,0.36223916,42658.0,42653.0,0.00044695]
[1642712527812,0.381006,42657.0,42653.0,0.00051895]
[1642712528306,0.381006,42657.0,42654.0,0.00042976]
[1642712528507,0.381006,42657.0,42654.0,0.00050176]
[1642712528709,0.55687704,42657.0,42654.0,0.00042976]
[1642712528962,0.49825204,42657.0,42655.0,0.00041257]
[1642712529161,0.439628,42657.0,42654.0,0.00042976]
[1642712529565,0.439628,42657.0,42656.0,0.28069127]
[1642712529769,0.381006,42657.0,42656.0,0.28069127]
[1642712529963,0.42,42658.0,42656.0,0.33108665]
[1642712530363,0.42,42658.0,42657.0,0.00037819]
[1642712530764,0.42,42658.0,42657.0,0.21407557]
[1642712530965,0.42,42658.0,42657.0,0.27268657]
[1642712531365,0.42,42658.0,42657.0,0.05898919]
[1642712531565,0.42,42658.0,42657.0,0.10898919]
[1642712531765,0.415,42658.0,42657.0,0.05898919]
[1642712531963,0.415,42658.0,42657.0,0.10898919]
[1642712532214,0.415,42658.0,42657.0,0.05898919]
[1642712532369,0.415,42658.0,42657.0,0.00037819]
[1642712535710,0.3997883,42658.0,42657.0,0.00037819]
[1642712538364,0.7807943,42658.0,42657.0,0.00037819]
[1642712538564,1.08669479,42658.0,42657.0,0.00037819]
[1642712538965,1.31753498,42658.0,42656.0,0.00046738]
[1642712539166,1.23402261,42657.0,42656.0,0.00039538]
[1642712539365,1.23402261,42657.0,42655.0,0.00067698]
[1642712539565,0.76611697,42656.0,42650.0,7.2e-05]
[1642712539805,0.31611697,42656.0,42654.0,0.00060501]
[1642712540218,0.7635093,42658.0,42654.0,0.00060501]
[1642712540856,0.7635093,42658.0,42652.0,7.2e-05]
[1642712541019,0.7635093,42658.0,42654.0,0.00060502]
[1642712541217,0.7048883,42658.0,42654.0,0.00060502]
[1642712541417,0.7048883,42658.0,42655.0,0.00041257]
[1642712541619,0.19465044,42657.0,42655.0,0.00041257]
[1642712541816,0.19465044,42657.0,42655.0,0.00048457]
[1642712542020,0.19465044,42657.0,42655.0,0.00041257]
[1642712542218,0.68544066,42656.0,42654.0,0.00060501]
[1642712542418,0.30443466,42656.0,42654.0,0.00060501]
[1642712542619,0.68553428,42655.0,42654.0,0.00060501]
[1642712542821,0.73553428,42655.0,42654.0,0.00060501]
[1642712543022,1.1921006,42655.0,42654.0,0.00103477]
[1642712543219,1.1921006,42655.0,42654.0,0.00042976]
[1642712543618,1.1921006,42655.0,42653.0,7.2e-05]
[1642712543818,1.2007286,42655.0,42653.0,0.00044695]
[1642712544077,0.30617889,42654.0,42653.0,0.00044695]
[1642712546174,0.30617889,42654.0,42652.0,0.00053614]
[1642712546372,0.42342889,42654.0,42652.0,0.00046414]